fUSD/lending_fUSD_20240428
["ID","MTS","AMOUNT","RATE_DAILY","PERIOD"]
[33075,1714331447740,-346.26841891,0.00010958,2]
[33077,1714331447758,-1549.43,0.00010958,2]
[33079,1714331447776,-502.44809936,0.00010958,2]
[33081,1714331447795,-500.0,0.00010958,2]
[33083,1714331447813,-500.0,0.00010958,2]
[33085,1714331447832,-951.73,0.00010958,2]
[33087,1714331447850,-500.0,0.00010958,2]
[33089,1714331447869,-500.0,0.00010958,2]
[33091,1714331447887,-500.0,0.00010958,2]
[33093,1714331447906,-500.0,0.00010958,2]
[33095,1714331447924,-2988.7,0.00010958,2]
[33097,1714331447943,-8626.56,0.00010958,2]
[33099,1714331447961,-500.0,0.00010958,2]
[33101,1714331447980,-500.0,0.00010958,2]
[33103,1714331447999,-500.0,0.00010958,2]
[33105,1714331448018,-766.16,0.00010958,2]
[33107,1714331448036,-1206.57,0.00010958,2]
[33109,1714331448054,-478.88009729,0.00010958,2]
[33111,1714331448073,-500.0,0.00010958,2]
[33113,1714331448091,-500.0,0.00010958,2]
[33115,1714331448110,-3105.73,0.00010958,2]
[33117,1714331448129,-1174.3,0.00010958,2]
[33119,1714331448148,-500.0,0.00010958,2]
[33121,1714331448166,-500.0,0.00010958,2]
[33123,1714331448185,-500.0,0.00010958,2]
[33125,1714331448203,-500.0,0.00010958,2]
[33127,1714331448221,-1939.82,0.00010958,2]
[33129,1714331448240,-500.0,0.00010958,2]
[33131,1714331448259,-500.0,0.00010958,2]
[33133,1714331448277,-1544.41468797,0.00010958,2]
[33135,1714331448299,-500.0,0.00010958,2]
[33137,1714331448317,-500.0,0.00010958,2]
[33139,1714331448336,-566.88,0.00010958,2]
[33141,1714331448358,-545.40806253,0.00010958,2]
[33143,1714331448376,-2494.32,0.00010958,2]
[33145,1714331448395,-1962.38,0.00010958,2]
[33147,1714331448414,-500.0,0.00010958,2]
[33149,1714331448757,-736.62,0.00010958,2]
[33150,1714331448768,-500.0,0.00010958,2]
[33151,1714331448777,-500.0,0.00010958,2]
[33152,1714331448786,-500.76172331,0.00010958,2]
[33153,1714331448795,-2736.52,0.00010958,2]
[33154,1714331448805,-500.0,0.00010958,2]
[33155,1714331448814,-2456.77239387,0.00010958,2]
[33156,1714331448826,-467.03760613,0.00010958,2]
[33157,1714331448836,-500.0,0.00010958,2]
[33158,1714331448845,-1242.16,0.00010958,2]
[33159,1714331448854,-500.0,0.00010958,2]
[33161,1714331448873,-678.26,0.00010958,2]
[33162,1714331448882,-1288.39,0.00010958,2]
[33163,1714331448891,-500.0,0.00010958,2]
[33165,1714331448910,-500.0,0.00010958,2]
[33167,1714331448929,-500.0,0.00010958,2]
[33169,1714331448947,-500.0,0.00010958,2]
[33171,1714331448967,-526.02765667,0.00010958,2]
[33173,1714331448989,-225.61583667,0.00010958,2]
[33175,1714331449011,-500.0,0.00010958,2]
[33177,1714331449031,-3369.5666686,0.00010958,2]
[33179,1714331449052,-564.18583667,0.00010958,2]
[33181,1714331452705,-7190.4,0.00010502,2]
[33183,1714331452725,-635.76972566,0.00010591,2]
[33185,1714331452748,-4422.33067648,0.00010591,2]
[33187,1714331452774,-13257.09866923,0.00010591,2]
[33189,1714331452797,-4401.08170398,0.00010591,2]
[33190,1714331452809,-32529.60960936,0.00010591,2]
[33191,1714331452911,-479.00747743,0.00010591,2]
[33193,1714331452933,-1402.00329373,0.00010591,2]
[33195,1714331453013,-6605.31756364,0.00010591,2]
[33197,1714331453035,-3337.5717888,0.00010591,2]
[33199,1714331453057,-4662.526581,0.00010591,2]
[33201,1714331453080,-587323.89596864,0.00010591,2]
[33203,1714331453098,-500.0,0.00010958,2]
[33205,1714331453119,-500.0,0.00010958,2]
[33207,1714331453144,-1538.14,0.00010958,2]
[33209,1714331453169,-500.0,0.00010958,2]
[33211,1714331453189,-8592.95,0.00010958,2]
[33213,1714331453213,-529.13,0.00010958,2]
[33215,1714331453236,-500.0,0.00010958,2]
[33217,1714331453260,-500.0,0.00010958,2]
[33219,1714331453284,-500.0,0.00010958,2]
[33221,1714331453310,-500.0,0.00010958,2]
[33223,1714331453334,-500.0,0.00010958,2]
[33225,1714331453360,-500.0,0.00010958,2]
[33227,1714331453385,-1086.25,0.00010958,2]
[33229,1714331453408,-500.0,0.00010958,2]
[33231,1714331453435,-500.0,0.00010958,2]
[33233,1714331453458,-500.0,0.00010958,2]
[33235,1714331453480,-500.0,0.00010958,2]
[33237,1714331453505,-150.0,0.00010959,2]
[33238,1714331453517,-1497.27,0.00010959,2]
[33239,1714331453528,-200.0,0.00011,2]
[33241,1714331453556,-1023.6529107,0.00011007,2]
[33242,1714331453568,-7046.77395734,0.0001108,2]
[33243,1714331453580,-179.98798159,0.00011132,2]
[33245,1714331453601,-216.98737483,0.00011132,2]
[33247,1714331453622,-500.0,0.00011231,2]
[33249,1714331453647,-500.0,0.00011232,2]
[33251,1714331453672,-500.0,0.00011232,2]
[33253,1714331453693,-500.0,0.00011232,2]
[33255,1714331453716,-500.0,0.00011232,2]
[33257,1714331453737,-500.0,0.00011232,2]
[33259,1714331453759,-500.0,0.00011232,2]
[33260,1714331453769,-500.0,0.00011232,2]
[33261,1714331453782,-500.0,0.00011232,2]
[33263,1714331453803,-500.0,0.00011232,2]
[33265,1714331453835,-500.0,0.00011232,2]
[33267,1714331453857,-500.0,0.00011232,2]
[33269,1714331453880,-252.66111895,0.00011232,2]
[33271,1714331453903,-500.0,0.00011232,2]
[33273,1714331453925,-500.0,0.00011232,2]
[33275,1714331453948,-500.0,0.00011232,2]
[33277,1714331453970,-500.0,0.00011232,2]
[33279,1714331453992,-500.0,0.00011232,2]
[33281,1714331454015,-605.3,0.00011232,2]
[33283,1714331454037,-500.0,0.00011232,2]
[33284,1714331454048,-500.0,0.00011232,2]
[33285,1714331454059,-500.0,0.00011232,2]
[33287,1714331454081,-500.0,0.00011232,2]
[33289,1714331454104,-500.0,0.00011232,2]
[33291,1714331454126,-500.0,0.00011232,2]
[33293,1714331454148,-500.0,0.00011232,2]
[33295,1714331454171,-607.32,0.00011232,2]
[33297,1714331454193,-500.0,0.00011232,2]
[33299,1714331454216,-500.0,0.00011232,2]
[33301,1714331454238,-500.0,0.00011232,2]
[33303,1714331454260,-500.0,0.00011232,2]
[33305,1714331454282,-500.0,0.00011232,2]
[33307,1714331454304,-500.0,0.00011232,2]
[33309,1714331454325,-500.0,0.00011232,2]
[33311,1714331454351,-529.75,0.00011232,2]
[33313,1714331454373,-500.0,0.00011232,2]
[33315,1714331454394,-500.0,0.00011232,2]
[33317,1714331454417,-500.0,0.00011232,2]
[33319,1714331454440,-500.0,0.00011232,2]
[33321,1714331454462,-500.0,0.00011232,2]
[33323,1714331454484,-500.0,0.00011232,2]
[33325,1714331454508,-500.0,0.00011232,2]
[33327,1714331454530,-500.0,0.00011232,2]
[33329,1714331454552,-597.62,0.00011232,2]
[33331,1714331454575,-744.02,0.00011232,2]
[33333,1714331454597,-500.0,0.00011232,2]
[33335,1714331454619,-500.0,0.00011232,2]
[33337,1714331454640,-500.0,0.00011232,2]
[33339,1714331454663,-500.0,0.00011232,2]
[33341,1714331454685,-556.86,0.00011232,2]
[33343,1714331454708,-500.0,0.00011232,2]
[33344,1714331454719,-500.0,0.00011232,2]
[33345,1714331454730,-500.0,0.00011232,2]
[33347,1714331454752,-500.0,0.00011232,2]
[33349,1714331454773,-500.0,0.00011232,2]
[33351,1714331454796,-500.0,0.00011232,2]
[33353,1714331454818,-500.0,0.00011232,2]
[33355,1714331454841,-500.0,0.00011232,2]
[33357,1714331454863,-500.0,0.00011232,2]
[33358,1714331454875,-500.0,0.00011232,2]
[33359,1714331454886,-500.0,0.00011232,2]
[33361,1714331454908,-500.0,0.00011232,2]
[33363,1714331454931,-500.0,0.00011232,2]
[33365,1714331454952,-500.0,0.00011232,2]
[33367,1714331454973,-500.0,0.00011232,2]
[33369,1714331454995,-500.0,0.00011232,2]
[33371,1714331455016,-708.28,0.00011232,2]
[33373,1714331455038,-500.0,0.00011232,2]
[33375,1714331455063,-500.0,0.00011232,2]
[33377,1714331455086,-500.0,0.00011232,2]
[33379,1714331455107,-588.27,0.00011232,2]
[33381,1714331455130,-500.0,0.00011232,2]
[33383,1714331455151,-500.0,0.00011232,2]
[33385,1714331455172,-500.0,0.00011232,2]
[33387,1714331455193,-500.0,0.00011232,2]
[33389,1714331455213,-500.0,0.00011232,2]
[33391,1714331455234,-500.0,0.00011232,2]
[33393,1714331455257,-500.0,0.00011232,2]
[33395,1714331455277,-500.0,0.00011232,2]
[33397,1714331455297,-500.0,0.00011232,2]
[33399,1714331455319,-500.0,0.00011232,2]
[33401,1714331455342,-500.0,0.00011232,2]
[33403,1714331455363,-500.0,0.00011232,2]
[33405,1714331455386,-525.35831011,0.00011232,2]
[33407,1714331455407,-500.0,0.00011232,2]
[33409,1714331455433,-638.09,0.00011232,2]
[33411,1714331455454,-500.0,0.00011232,2]
[33413,1714331455474,-500.0,0.00011232,2]
[33415,1714331455495,-500.0,0.00011232,2]
[33417,1714331455516,-500.0,0.00011232,2]
[33419,1714331455536,-500.0,0.00011232,2]
[33421,1714331455557,-500.0,0.00011232,2]
[33423,1714331455577,-507.19316302,0.00011232,2]
[33425,1714331455598,-500.0,0.00011232,2]
[33427,1714331455618,-500.0,0.00011232,2]
[33429,1714331455638,-500.0,0.00011232,2]
[33431,1714331455659,-550.86,0.00011232,2]
[33433,1714331455679,-500.0,0.00011232,2]
[33435,1714331455699,-500.0,0.00011232,2]
[33437,1714331455720,-681.2,0.00011232,2]
[33439,1714331455740,-500.0,0.00011232,2]
[33441,1714331455763,-500.0,0.00011232,2]
[33443,1714331455783,-712.36,0.00011232,2]
[33445,1714331455803,-500.0,0.00011232,2]
[33447,1714331455824,-500.0,0.00011232,2]
[33449,1714331455845,-500.0,0.00011232,2]
[33451,1714331455865,-500.0,0.00011232,2]
[33453,1714331455886,-738.79,0.00011232,2]
[33455,1714331455906,-500.0,0.00011232,2]
[33457,1714331455927,-500.0,0.00011232,2]
[33459,1714331455947,-500.0,0.00011232,2]
[33461,1714331455968,-500.0,0.00011232,2]
[33463,1714331455988,-500.0,0.00011232,2]
[33465,1714331456011,-500.0,0.00011232,2]
[33467,1714331456031,-500.0,0.00011232,2]
[33469,1714331456052,-500.0,0.00011232,2]
[33471,1714331456073,-500.0,0.00011232,2]
[33473,1714331456095,-500.0,0.00011232,2]
[33475,1714331456117,-500.0,0.00011232,2]
[33477,1714331456138,-500.0,0.00011232,2]
[33479,1714331456159,-500.0,0.00011232,2]
[33481,1714331456179,-500.0,0.00011232,2]
[33483,1714331456200,-501.83960946,0.00011232,2]
[33485,1714331456220,-500.0,0.00011232,2]
[33487,1714331456240,-500.0,0.00011232,2]
[33489,1714331456262,-500.0,0.00011232,2]
[33491,1714331456283,-500.0,0.00011232,2]
[33493,1714331456304,-1224.58,0.00011232,2]
[33495,1714331456324,-500.0,0.00011232,2]
[33497,1714331456350,-1272.33,0.00011232,2]
[33499,1714331456370,-500.0,0.00011232,2]
[33501,1714331456391,-500.0,0.00011232,2]
[33503,1714331456412,-500.0,0.00011232,2]
[33505,1714331456434,-500.0,0.00011232,2]
[33507,1714331456454,-500.0,0.00011232,2]
[33509,1714331456475,-557.05,0.00011232,2]
[33511,1714331456496,-507.35183933,0.00011232,2]
[33513,1714331456516,-500.0,0.00011232,2]
[33515,1714331456538,-500.0,0.00011232,2]
[33517,1714331456558,-500.0,0.00011232,2]
[33519,1714331456580,-533.0,0.00011232,2]
[33521,1714331456601,-504.61017171,0.00011232,2]
[33523,1714331456622,-649.51,0.00011232,2]
[33525,1714331456642,-500.0,0.00011232,2]
[33527,1714331456664,-500.0,0.00011232,2]
[33529,1714331456685,-500.0,0.00011232,2]
[33531,1714331456707,-500.0,0.00011232,2]
[33533,1714331456726,-500.0,0.00011232,2]
[33535,1714331456747,-606.2,0.00011232,2]
[33537,1714331456767,-500.0,0.00011232,2]
[33539,1714331456788,-500.0,0.00011232,2]
[33541,1714331456809,-500.0,0.00011232,2]
[33543,1714331456829,-500.0,0.00011232,2]
[33545,1714331456850,-500.0,0.00011232,2]
[33547,1714331456871,-500.0,0.00011232,2]
[33549,1714331457670,-629.85,0.00011232,2]
[33551,1714331457715,-500.0,0.00011232,2]
[33553,1714331457738,-500.0,0.00011232,2]
[33555,1714331457760,-816.26,0.00011232,2]
[33557,1714331457780,-507.09,0.00011232,2]
[33559,1714331457798,-891.97,0.00011232,2]
[33561,1714331457818,-500.0,0.00011232,2]
[33563,1714331457837,-500.0,0.00011232,2]
[33565,1714331457856,-668.56,0.00011232,2]
[33567,1714331457875,-788.51,0.00011232,2]
[33569,1714331457893,-500.0,0.00011232,2]
[33571,1714331457918,-500.0,0.00011232,2]
[33573,1714331457938,-416.60377447,0.00011232,2]
[33575,1714331457958,-526.91,0.00011232,2]
[33576,1714331457968,-500.0,0.00011232,2]
[33577,1714331457978,-565.5,0.00011232,2]
[33579,1714331458000,-1610.42,0.00011232,2]
[33581,1714331458020,-1218.59,0.00011232,2]
[33582,1714331458030,-500.0,0.00011232,2]
[33583,1714331458040,-500.0,0.00011232,2]
[33585,1714331458059,-643.86,0.00011232,2]
[33587,1714331458078,-500.0,0.00011232,2]
[33589,1714331458098,-500.0,0.00011232,2]
[33591,1714331458118,-513.55,0.00011232,2]
[33593,1714331458138,-1577.52,0.00011232,2]
[33595,1714331458157,-500.0,0.00011232,2]
[33597,1714331458177,-500.0,0.00011232,2]
[33599,1714331458197,-500.0,0.00011232,2]
[33601,1714331458217,-500.0,0.00011232,2]
[33603,1714331458236,-728.71,0.00011232,2]
[33605,1714331458257,-500.0,0.00011232,2]
[33607,1714331458276,-500.0,0.00011232,2]
[33609,1714331458295,-615.66,0.00011232,2]
[33611,1714331458314,-500.0,0.00011232,2]
[33612,1714331458324,-500.0,0.00011232,2]
[33613,1714331458334,-500.0,0.00011232,2]
[33615,1714331458357,-575.03,0.00011232,2]
[33617,1714331458377,-500.0,0.00011232,2]
[33619,1714331458399,-538.42,0.00011232,2]
[33621,1714331458419,-772.95,0.00011232,2]
[33623,1714331458439,-500.0,0.00011232,2]
[33625,1714331458458,-513.25,0.00011232,2]
[33627,1714331458479,-920.36,0.00011232,2]
[33629,1714331458499,-645.92,0.00011232,2]
[33630,1714331458509,-500.0,0.00011232,2]
[33631,1714331458518,-500.0,0.00011232,2]
[33632,1714331458528,-592.76,0.00011232,2]
[33633,1714331458540,-765.46,0.00011232,2]
[33635,1714331458560,-500.0,0.00011232,2]
[33636,1714331458570,-652.17,0.00011232,2]
[33637,1714331458579,-500.0,0.00011232,2]
[33639,1714331458598,-500.0,0.00011232,2]
[33640,1714331458608,-500.0,0.00011232,2]
[33641,1714331458618,-500.0,0.00011232,2]
[33643,1714331458637,-500.0,0.00011232,2]
[33645,1714331458656,-535.83,0.00011232,2]
[33647,1714331458675,-500.0,0.00011232,2]
[33649,1714331458694,-500.0,0.00011232,2]
[33651,1714331458716,-581.86,0.00011232,2]
[33653,1714331458735,-500.0,0.00011232,2]
[33655,1714331458755,-608.78,0.00011232,2]
[33657,1714331458774,-640.22,0.00011232,2]
[33659,1714331458793,-500.0,0.00011232,2]
[33661,1714331458812,-500.0,0.00011232,2]
[33663,1714331458832,-710.87,0.00011232,2]
[33665,1714331458852,-500.0,0.00011232,2]
[33667,1714331458872,-500.0,0.00011232,2]
[33669,1714331458894,-500.0,0.00011232,2]
[33671,1714331458915,-810.35,0.00011232,2]
[33673,1714331458935,-725.07,0.00011232,2]
[33675,1714331458954,-500.0,0.00011232,2]
[33677,1714331458975,-500.0,0.00011232,2]
[33679,1714331458994,-500.50269074,0.00011232,2]
[33680,1714331459005,-726.49,0.00011232,2]
[33681,1714331459014,-500.0,0.00011232,2]
[33682,1714331459024,-500.0,0.00011232,2]
[33683,1714331459033,-500.0,0.00011232,2]
[33685,1714331459053,-500.0,0.00011232,2]
[33686,1714331459063,-704.75,0.00011232,2]
[33687,1714331459072,-540.78,0.00011232,2]
[33688,1714331459082,-500.0,0.00011232,2]
[33689,1714331459092,-500.0,0.00011232,2]
[33690,1714331459101,-500.0,0.00011232,2]
[33691,1714331459112,-493.6486652,0.00011232,2]
[33693,1714331459131,-500.0,0.00011232,2]
[33695,1714331459150,-698.54,0.00011232,2]
[33697,1714331459168,-500.0,0.00011232,2]
[33699,1714331459186,-500.0,0.00011232,2]
[33700,1714331459196,-500.0,0.00011232,2]
[33701,1714331459206,-500.0,0.00011232,2]
[33702,1714331459216,-775.6,0.00011232,2]
[33703,1714331459226,-500.0,0.00011232,2]
[33704,1714331459235,-500.0,0.00011232,2]
[33705,1714331459244,-500.0,0.00011232,2]
[33706,1714331459255,-682.92,0.00011232,2]
[33707,1714331459264,-500.0,0.00011232,2]
[33708,1714331459274,-890.23,0.00011232,2]
[33709,1714331459283,-502.38003151,0.00011232,2]
[33711,1714331459302,-628.44,0.00011232,2]
[33713,1714331459321,-500.0,0.00011232,2]
[33714,1714331459330,-512.99,0.00011232,2]
[33715,1714331459342,-500.0,0.00011232,2]
[33717,1714331459362,-500.0,0.00011232,2]
[33718,1714331459371,-500.0,0.00011232,2]
[33719,1714331459381,-501.64498368,0.00011232,2]
[33721,1714331459400,-500.0,0.00011232,2]
[33723,1714331459419,-561.86,0.00011232,2]
[33725,1714331459442,-500.0,0.00011232,2]
[33727,1714331459462,-500.0,0.00011232,2]
[33729,1714331459481,-500.0,0.00011232,2]
[33731,1714331459500,-500.0,0.00011232,2]
[33733,1714331459520,-500.0,0.00011232,2]
[33735,1714331459539,-607.06,0.00011232,2]
[33737,1714331459557,-500.0,0.00011232,2]
[33738,1714331459566,-500.0,0.00011232,2]
[33739,1714331459576,-500.0,0.00011232,2]
[33741,1714331459596,-500.0,0.00011232,2]
[33743,1714331459614,-646.9,0.00011232,2]
[33745,1714331459638,-500.0,0.00011232,2]
[33747,1714331459658,-559.54,0.00011232,2]
[33748,1714331459669,-500.0,0.00011232,2]
[33749,1714331459681,-500.0,0.00011232,2]
[33750,1714331459691,-500.0,0.00011232,2]
[33751,1714331459702,-588.44,0.00011232,2]
[33753,1714331459721,-500.0,0.00011232,2]
[33754,1714331459730,-500.0,0.00011232,2]
[33755,1714331459740,-500.0,0.00011232,2]
[33756,1714331459750,-998.15,0.00011232,2]
[33757,1714331459760,-500.0,0.00011232,2]
[33759,1714331459780,-500.0,0.00011232,2]
[33760,1714331459790,-500.0,0.00011232,2]
[33761,1714331459801,-556.97,0.00011232,2]
[33762,1714331459811,-500.0,0.00011232,2]
[33763,1714331459821,-500.0,0.00011232,2]
[33765,1714331459842,-500.0,0.00011232,2]
[33766,1714331459852,-500.0,0.00011232,2]
[33767,1714331459863,-573.36,0.00011232,2]
[33768,1714331459872,-888.38,0.00011232,2]
[33769,1714331459882,-500.0,0.00011232,2]
[33770,1714331459891,-580.10868977,0.00011232,2]
[33771,1714331459900,-500.0,0.00011232,2]
[33773,1714331459919,-504.67163938,0.00011232,2]
[33774,1714331459929,-500.0,0.00011232,2]
[33775,1714331459939,-565.43,0.00011232,2]
[33777,1714331460052,-596.12,0.00011232,2]
[33778,1714331460062,-500.0,0.00011232,2]
[33779,1714331460071,-700.29,0.00011232,2]
[33781,1714331460090,-503.67878338,0.00011232,2]
[33783,1714331460109,-500.0,0.00011232,2]
[33785,1714331460128,-518.15647858,0.00011232,2]
[33787,1714331460148,-500.0,0.00011232,2]
[33789,1714331460166,-500.0,0.00011232,2]
[33791,1714331460185,-500.0,0.00011232,2]
[33793,1714331460204,-150.0,0.00011232,2]
[33795,1714331460222,-500.0,0.00011232,2]
[33797,1714331460241,-500.0,0.00011232,2]
[33799,1714331460260,-601.85,0.00011232,2]
[33801,1714331460277,-500.0,0.00011232,2]
[33803,1714331460295,-708.42,0.00011232,2]
[33805,1714331460313,-500.0,0.00011232,2]
[33807,1714331460331,-428.79017022,0.00011232,2]
[33809,1714331460353,-500.0,0.00011232,2]
[33811,1714331460371,-500.0,0.00011232,2]
[33813,1714331460390,-765.39,0.00011232,2]
[33815,1714331460408,-510.54,0.00011232,2]
[33817,1714331460429,-500.0,0.00011232,2]
[33819,1714331460449,-500.0,0.00011232,2]
[33821,1714331460468,-979.76,0.00011232,2]
[33823,1714331460485,-662.94,0.00011232,2]
[33824,1714331460494,-500.0,0.00011232,2]
[33825,1714331460505,-500.0,0.00011232,2]
[33827,1714331460523,-500.0,0.00011232,2]
[33829,1714331460542,-500.0,0.00011232,2]
[33831,1714331460561,-500.0,0.00011232,2]
[33833,1714331460579,-500.0,0.00011232,2]
[33835,1714331460597,-500.0,0.00011232,2]
[33837,1714331460616,-511.71,0.00011232,2]
[33839,1714331460634,-500.0,0.00011232,2]
[33841,1714331460654,-500.0,0.00011232,2]
[33843,1714331460673,-500.0,0.00011232,2]
[33845,1714331460692,-500.0,0.00011232,2]
[33847,1714331460711,-500.0,0.00011232,2]
[33849,1714331460730,-913.43,0.00011232,2]
[33851,1714331460748,-540.89,0.00011232,2]
[33853,1714331460768,-500.0,0.00011232,2]
[33855,1714331460787,-500.0,0.00011232,2]
[33857,1714331460806,-235.27903176,0.00011232,2]
[33858,1714331460815,-500.0,0.00011232,2]
[33859,1714331460825,-717.54,0.00011232,2]
[33861,1714331460843,-500.0,0.00011232,2]
[33863,1714331460862,-500.0,0.00011232,2]
[33865,1714331460880,-500.0,0.00011232,2]
[33866,1714331460890,-500.0,0.00011232,2]
[33867,1714331460899,-500.0,0.00011232,2]
[33868,1714331460908,-161.90466835,0.00011232,2]
[33869,1714331460918,-500.0,0.00011232,2]
[33870,1714331460927,-500.0,0.00011232,2]
[33871,1714331460936,-500.0,0.00011232,2]
[33873,1714331460954,-500.0,0.00011232,2]
[33875,1714331460973,-500.0,0.00011232,2]
[33877,1714331460991,-500.0,0.00011232,2]
[33879,1714331461011,-500.0,0.00011232,2]
[33881,1714331461030,-500.0,0.00011232,2]
[33883,1714331461051,-996.75,0.00011232,2]
[33885,1714331461069,-500.0,0.00011232,2]
[33887,1714331461090,-500.0,0.00011232,2]
[33889,1714331461109,-500.0,0.00011232,2]
[33891,1714331461128,-500.0,0.00011232,2]
[33893,1714331461147,-500.0,0.00011232,2]
[33895,1714331461165,-500.0,0.00011232,2]
[33897,1714331461183,-500.0,0.00011232,2]
[33899,1714331461202,-781.66,0.00011232,2]
[33901,1714331461220,-500.0,0.00011232,2]
[33903,1714331461239,-604.53,0.00011232,2]
[33905,1714331461260,-500.0,0.00011232,2]
[33907,1714331461278,-1227.66,0.00011232,2]
[33909,1714331461296,-500.0,0.00011232,2]
[33911,1714331461314,-768.34,0.00011232,2]
[33913,1714331461332,-500.0,0.00011232,2]
[33915,1714331461355,-500.0,0.00011232,2]
[33917,1714331461374,-500.0,0.00011232,2]
[33919,1714331461392,-500.0,0.00011232,2]
[33921,1714331461410,-500.0,0.00011232,2]
[33922,1714331461421,-500.0,0.00011232,2]
[33923,1714331461430,-1007.48,0.00011232,2]
[33925,1714331461449,-500.0,0.00011232,2]
[33927,1714331461467,-500.0,0.00011232,2]
[33928,1714331461475,-2921.48,0.00011232,2]
[33929,1714331461485,-500.0,0.00011232,2]
[33931,1714331461506,-598.01,0.00011232,2]
[33933,1714331461523,-500.0,0.00011232,2]
[33935,1714331461542,-625.85,0.00011232,2]
[33937,1714331461560,-500.0,0.00011232,2]
[33939,1714331461579,-805.9,0.00011232,2]
[33941,1714331461598,-500.0,0.00011232,2]
[33943,1714331461618,-207.98886816,0.00011232,2]
[33945,1714331461638,-500.0,0.00011232,2]
[33946,1714331461647,-500.0,0.00011232,2]
[33947,1714331461656,-500.0,0.00011232,2]
[33948,1714331461665,-500.0,0.00011232,2]
[33949,1714331461675,-500.0,0.00011232,2]
[33951,1714331461693,-1489.77,0.00011232,2]
[33953,1714331461712,-500.0,0.00011232,2]
[33955,1714331461732,-500.0,0.00011232,2]
[33957,1714331461751,-1492.28,0.00011232,2]
[33959,1714331461770,-500.0,0.00011232,2]
[33961,1714331461789,-2487.11,0.00011232,2]
[33963,1714331461807,-1102.77,0.00011232,2]
[33965,1714331461827,-500.0,0.00011232,2]
[33967,1714331461845,-500.0,0.00011232,2]